[Event "3rd Rio Open-Blitz 2024"]
[Site "Rio de Janeiro"]
[Date "2024.04.27"]
[Round "2.1"]
[White "Fier, Alexandr"]
[Black "Guimaraes, Lucas Dos S Peixoto"]
[Result "0-1"]
[ECO "A45"]
[WhiteElo "2566"]
[BlackElo "2019"]
[Annotator "TA"]
[PlyCount "66"]
[EventDate "2024.04.12"]
[EventType "swiss"]
[EventCountry "BRA"]
[SourceTitle "playchess.com"]
[Source "ChessBase"]
[SourceQuality "1"]
[TimeControl "180+2"]

{[%evp 9,66,26,47,35,78,25,124,0,44,9,20,0,29,39,59,11,57,58,70,36,22,-9,0,0,0,0,0,-58,0,-84,-83,-127,0,-566,-545,-514,-496,-468,-456,-599,-582,-622,-505,-456,-333,-840,-816,-852,-852,-1232,-1209,-1184,-1174,-1460,-1430,-29990,-5614,-29996,-29997]} 1. d4 {[%emt 0:00:01]} Nf6 {[%emt 0:00:00]} 2. Bg5 {[%emt 0:00:01]} c5 {[%emt 0:00:03]} 3. Bxf6 {[%emt 0:00:03]} gxf6 {[%emt 0:00:02]} 4. d5 {[%emt 0:00:00]} d6 {[%emt 0:00:04]} 5. c4 {[%emt 0:00:02]} Bf5 {[%emt 0:00:04]} 6. Nc3 {[%emt 0:00:01]} Nd7 {[%emt 0:00:06][%cal Bb8d7,Bd7e5,Be5g4][%mdl 32]} 7. h4 {[%emt 0:00:22]} (7. e4 $16 Bg6 8. Bd3) 7... Qa5 {[%emt 0:00:02]} (7... Ne5 $11) 8. Qd2 {[%emt 0:00:03]} (8. e4 $1 $16 {[%cal Re4f5]} Bxe4 9. Qe2) 8... h5 {[%emt 0:00:16]} 9. e3 {[%emt 0:00:02]} Ne5 {[%emt 0:00:10]} 10. Nh3 {[%emt 0:00:07]} Bh6 {[%emt 0:00:14]} 11. Nf4 {[%emt 0:00:02]} O-O-O {[%emt 0:00:19]} 12. Be2 {[%emt 0:00:04]} (12. Nxh5 $14 Qb4 13. Nd1) 12... Bxf4 {[%emt 0:00:10]} (12... Qb4 $11) 13. exf4 $14 {[%emt 0:00:01]} Ng4 {[%emt 0:00:20]} 14. f3 {[%emt 0:00:02]} Nh6 {[%emt 0:00:01]} 15. Kf2 {[%emt 0:00:03]} (15. Nd1 {simplifies} Qxd2+ 16. Kxd2 e5 17. fxe5 fxe5 18. Ne3) 15... Rdg8 {[%emt 0:00:03]} 16. a3 {[%emt 0:00:00]} Rg7 {[%emt 0:00:19]} 17. Qe3 {[%emt 0:00:03]} Rhg8 {[%emt 0:00:04]} 18. Rh2 {[%emt 0:00:01]} (18. Qxe7 $2 Rxg2+ 19. Ke1 Bg6 20. Qxd6 Re8 $19) (18. Rhg1 $11 Bd7 19. Bd3 (19. Qxe7 $2 Nf5 $19)) 18... Qc7 {[%emt 0:00:00]} (18... Bd7 $15) 19. b4 {[%emt 0:00:02] [#]} (19. Nb5 $11 {keeps the balance.} Qd8 20. Nxa7+ Kb8 21. Nb5) 19... Rg3 $1 $17 {[%emt 0:00:08] Hoping for ...Ng4+.} 20. Nb5 {[%emt 0:00:06] [#]} Qd7 {[%emt 0:00:11]} (20... Qd8 $1 $17 {Strongly threatening ...Ng4+.} 21. Qd2 (21. bxc5 $2 Ng4+ 22. fxg4 Rxe3 $19) (21. Nxa7+ $2 Kb8 $19) 21... a6) 21. bxc5 $2 {[%emt 0:00:02][%mdl 8192]} (21. Nxa7+ $2 Kb8 22. Qd2 (22. Nb5 $2 Ng4+ 23. fxg4 Rxe3 $19) 22... Kxa7 $19) (21. Qd2 $11 {and White is okay.}) 21... Ng4+ $19 {[%emt 0:00:01]} 22. fxg4 {[%emt 0:00:43]} Rxe3 {[%emt 0:00:01]} 23. Kxe3 {[%emt 0:00:01]} Bxg4 {[%emt 0:00:02]} (23... hxg4 24. g3 $19) 24. Bd3 {[%emt 0:00:01]} Bf5 {[%emt 0:00:01]} 25. Bf1 {[%emt 0:00:07]} Rg3+ {[%emt 0:00:02]} 26. Kf2 {[%emt 0:00:00]} Rg4 {[%emt 0:00:14]} 27. c6 $2 {[%emt 0:00:01]} (27. g3) 27... Rxf4+ {[%emt 0:00:03]} 28. Kg1 {[%emt 0:00:04]} bxc6 {[%emt 0:00:02]} 29. dxc6 {[%emt 0:00:01]} Qe6 {[%emt 0:00:07] ( -> ...Qe5)} 30. Kh1 {[%emt 0:00:22]} a6 {[%emt 0:00:07]} 31. Nc3 {[%emt 0:00:02]} Qe5 {[%emt 0:00:05]} 32. Rc1 {[%emt 0:00:01]} Qe3 {[%emt 0:00:01]} (32... Qxc3 $142 33. Rd1 Qc2 (33... Qxa3 $2 34. c5 $19) 34. Ra1 Qf2 35. Rh3 Bxh3 36. gxh3 Qg3 (36... Qxh4 {is a self mate.} 37. Bg2 Rxc4 38. Rg1 Rc2 39. Kh2 Qf4+ 40. Kh1 Qg3 41. c7 Kxc7 42. a4 a5 43. h4 Qxh4+ 44. Bh3 Qxh3#) 37. Bg2 Rxc4 38. a4 Rxh4 (38... Qxh4 {leads to mate.} 39. Rg1 Rc2 40. Bf1 Qf4 41. Rg8+ Kc7 42. Rc8+ Kxc8 43. Bxa6+ Kc7 44. Be2 Rxe2 45. Kg1 Qc1#) 39. Bf1 Qf3+ (39... Rxh3+ 40. Bxh3+ Qxh3+ 41. Kg1 Qe3+ 42. Kg2 Qd2+ 43. Kf1 Qd3+ 44. Kg2 Qd5+ 45. Kh3 Qb3+ 46. Kg2 Qb2+ 47. Kf3 Qxa1 48. Ke2 h4 49. Kf2 Qb2+ 50. Kf3 h3 51. Kg3 h2 52. Kg4 Qe5 53. Kh3 h1=Q+ 54. Kg4 Qhh5#) 40. Kg1 Qe3+ (40... Qxc6 $2 41. Kh2 $19) 41. Kh1 Qe4+ (41... Rxh3+ 42. Bxh3+ Qxh3+ 43. Kg1 Qe3+ 44. Kg2 Qe4+ 45. Kh3 Qe6+ 46. Kg2 Qd5+ 47. Kh3 Qb3+ 48. Kg2 Qb2+ 49. Kf3 Qxa1 50. Ke3 h4 51. Kf2 h3 52. Kg3 Qg1+ 53. Kf4 h2 54. Ke4 Qd1 55. Kf4 h1=Q 56. Kg3 Qdf3#) 42. Kg1 Qd4+ (42... Qxc6 $2 43. Ra2 $19) 43. Kg2 Qb2+ (43... Qxa1 44. Bxa6+ Kc7 45. Be2 Rf4 46. Kg3 Rf5 47. Kg2 Qb2 48. Kh1 Qxe2 49. h4 Rf1#) 44. Kf3 Qxa1 (44... Qc3+ 45. Kf2 Rf4+ 46. Kg2 Qb2+ 47. Be2 Qxe2+ 48. Kg1 Qe3+ 49. Kh2 Rf2+ 50. Kg1 Qg3+ 51. Kh1 Qh2#) 45. Bxa6+ Kc7 46. Kg2 Rf4 (46... Qxa4 47. Bf1 Rf4 48. Bd3 Qxc6+ 49. Kg1 Qc5+ 50. Kh1 Rf2 51. Kg1 Re2+ 52. Kh1 Qc1#) 47. Kg3 Qd4 (47... Rxa4 {gets mated.} 48. Be2 Qe1+ 49. Kf3 Ra3+ 50. Bd3 Qf1+ 51. Ke3 Rxd3+ 52. Ke4 f5#) 48. Kh2 Rf2+ (48... Kxc6 49. Kh1 Rf2 50. Bb5+ Kc5 51. Kg1 Re2+ 52. Kh1 Qd1#) 49. Kg1 Re2+ 50. Kh1 Qd1#) 33. Na2 {[%emt 0:00:01] [#]} Qxc1 $3 {[%emt 0:00:03][%mdl 512] Weighted Error Value: White=1.43/Black=0.44.  Loses game:     	White=1     	---        Mistake:       	White=6     	Black=4      Inaccurate:     	White=5     	Black=3      OK:         	White=2     	Black=5      Best:        	White=2     	Black=1      Strong:       	---       	Black=1} 0-1

[Event "3rd Rio Open-Blitz 2024"]
[Site "Rio de Janeiro"]
[Date "2024.04.27"]
[Round "2.2"]
[White "Guimaraes, Wagner Peixoto"]
[Black "Dias, Matheus Braga"]
[Result "0-1"]
[ECO "B86"]
[WhiteElo "2140"]
[BlackElo "1960"]
[Annotator "NA RC"]
[PlyCount "84"]
[EventDate "2024.04.12"]
[EventType "swiss"]
[EventCountry "BRA"]
[SourceTitle "playchess.com"]
[Source "ChessBase"]
[SourceQuality "1"]
[TimeControl "180+2"]

1. e4 {[%emt 0:00:00]} c5 {[%emt 0:00:02]} 2. Nf3 {[%emt 0:00:02]} d6 {[%emt 0:00:02]} 3. d4 {[%emt 0:00:01]} cxd4 {[%emt 0:00:01]} 4. Nxd4 {[%emt 0:00:00]} Nf6 {[%emt 0:00:03]} 5. Nc3 {[%emt 0:00:01]} a6 {[%emt 0:00:00]} 6. Bc4 {[%emt 0:00:02]} e6 {[%emt 0:00:04]} 7. Bb3 {[%emt 0:00:02]} Be7 {[%emt 0:00:06]} 8. Be3 {[%emt 0:00:01]} O-O {[%emt 0:00:08]} 9. Qe2 {[%emt 0:00:02]} Qc7 {[%emt 0:00:03]} 10. O-O-O {[%emt 0:00:05]} Nbd7 {[%emt 0:00:04]} 11. g4 {[%emt 0:00:05]} Nc5 {[%emt 0:00:02]} 12. f3 {[%emt 0:00:10]} b5 {[%emt 0:00:09]} 13. g5 {[%emt 0:00:02]} Nxb3+ {[%emt 0:00:02]} 14. axb3 {[%emt 0:00:02]} Nd7 {[%emt 0:00:03]} 15. Rhg1 {[%emt 0:00:57]} Bb7 {[%emt 0:00:03]} 16. f4 {[%emt 0:00:12]} Rfc8 {[%emt 0:00:06]} 17. Kb1 {[%emt 0:00:15]} Nc5 {[%emt 0:00:13]} 18. Bc1 {[%emt 0:00:20]} g6 {[%emt 0:00:47]} 19. b4 {[%emt 0:00:15]} Na4 {[%emt 0:00:06]} 20. Nxa4 {[%emt 0:00:02]} bxa4 {[%emt 0:00:02]} 21. h4 {[%emt 0:00:22]} Qb6 {[%emt 0:00:05]} 22. c3 {[%emt 0:00:07]} a5 {[%emt 0:00:02]} 23. Be3 {[%emt 0:00:08]} axb4 {[%emt 0:00:10]} 24. Nxe6 {[%emt 0:00:12]} Qc6 {[%emt 0:00:17]} 25. Nd4 {[%emt 0:00:15]} Qxe4+ {[%emt 0:00:05]} 26. Ka1 {[%emt 0:00:00]} a3 {[%emt 0:00:03]} 27. b3 {[%emt 0:00:06]} Rxc3 {[%emt 0:00:03]} 28. Rge1 {[%emt 0:00:02]} Rac8 {[%emt 0:00:16]} 29. Nb5 {[%emt 0:00:03]} Rc2 {[%emt 0:00:04]} 30. Qd3 {[%emt 0:00:01]} Qc6 {[%emt 0:00:05]} 31. Nd4 {[%emt 0:00:02]} Qc3+ {[%emt 0:00:02]} 32. Qxc3 {[%emt 0:00:02]} R2xc3 {[%emt 0:00:01]} 33. Nb5 {[%emt 0:00:05]} Rxb3 {[%emt 0:00:08]} 34. Nxd6 {[%emt 0:00:00]} Bxd6 {[%emt 0:00:06]} 35. Rxd6 {[%emt 0:00:01]} Re8 {[%emt 0:00:08]} 36. Bd2 {[%emt 0:00:03]} Rxe1+ {[%emt 0:00:04]} 37. Bxe1 {[%emt 0:00:00]} Be4 {[%emt 0:00:04]} 38. Rb6 {[%emt 0:00:02]} Rb1+ {[%emt 0:00:02]} 39. Ka2 {[%emt 0:00:02]} Rxe1 {[%emt 0:00:02]} 40. Rxb4 {[%emt 0:00:00]} Bd5+ {[%emt 0:00:08]} 41. Kxa3 {[%emt 0:00:02]} Be6 {[%emt 0:00:06]} 42. Kb2 {[%emt 0:00:02]} Bf5 {[%emt 0:00:03]} 0-1

[Event "3rd Rio Open-Blitz 2024"]
[Site "Rio de Janeiro"]
[Date "2024.04.27"]
[Round "2.3"]
[White "Viana, Dirceu"]
[Black "Azevedo, Edmundo Roberto Ramo"]
[Result "1/2-1/2"]
[ECO "A11"]
[WhiteElo "2172"]
[BlackElo "1917"]
[Annotator "NA RC"]
[PlyCount "68"]
[EventDate "2024.04.12"]
[EventType "swiss"]
[EventCountry "BRA"]
[SourceTitle "playchess.com"]
[Source "ChessBase"]
[SourceQuality "1"]
[TimeControl "180+2"]

1. Nf3 {[%emt 0:00:03]} d5 {[%emt 0:00:01]} 2. e3 {[%emt 0:00:01]} Nf6 {[%emt 0:00:01]} 3. c4 {[%emt 0:00:01]} c6 {[%emt 0:00:01]} 4. Nc3 {[%emt 0:00:01]} Bg4 {[%emt 0:00:01]} 5. Qb3 {[%emt 0:00:02]} Qb6 {[%emt 0:00:03]} 6. Ne5 {[%emt 0:00:01]} e6 {[%emt 0:00:07]} 7. Nxg4 {[%emt 0:00:07]} Nxg4 {[%emt 0:00:01]} 8. Be2 {[%emt 0:00:05]} Nf6 {[%emt 0:00:01]} 9. O-O {[%emt 0:00:18]} Nbd7 {[%emt 0:00:01]} 10. cxd5 {[%emt 0:00:05]} Qxb3 {[%emt 0:00:04]} 11. axb3 {[%emt 0:00:01]} Nxd5 {[%emt 0:00:04]} 12. Nxd5 {[%emt 0:00:11]} exd5 {[%emt 0:00:08]} 13. d3 {[%emt 0:00:08]} Bd6 {[%emt 0:00:05]} 14. Bd2 {[%emt 0:00:02]} O-O {[%emt 0:00:02]} 15. Bf3 {[%emt 0:00:16]} a6 {[%emt 0:00:08]} 16. d4 {[%emt 0:00:14]} Rfe8 {[%emt 0:00:04]} 17. Rfd1 {[%emt 0:00:10]} Nf6 {[%emt 0:00:03]} 18. Be1 {[%emt 0:00:02]} Ne4 {[%emt 0:00:03]} 19. Be2 {[%emt 0:00:02]} h6 {[%emt 0:00:02]} 20. f3 {[%emt 0:00:09]} Ng5 {[%emt 0:00:08]} 21. Bf2 {[%emt 0:00:09]} Ne6 {[%emt 0:00:08]} 22. g4 {[%emt 0:00:09]} Bc7 {[%emt 0:00:03]} 23. h3 {[%emt 0:00:03]} Bb6 {[%emt 0:00:02]} 24. Kg2 {[%emt 0:00:11]} Nxd4 {[%emt 0:00:08]} 25. Bxa6 {[%emt 0:00:22]} Nxb3 {[%emt 0:00:09]} 26. Ra3 {[%emt 0:00:01]} Rxa6 {[%emt 0:00:32]} 27. Rxb3 {[%emt 0:00:01]} Re7 {[%emt 0:00:05]} 28. Rdd3 {[%emt 0:00:18]} Ba7 {[%emt 0:00:09]} 29. Ra3 {[%emt 0:00:01]} Rxa3 {[%emt 0:00:08]} 30. Rxa3 {[%emt 0:00:01]} Bc5 {[%emt 0:00:05]} 31. Rc3 {[%emt 0:00:03]} Bb6 {[%emt 0:00:03]} 32. Rb3 {[%emt 0:00:01]} Bc5 {[%emt 0:00:01]} 33. Rc3 {[%emt 0:00:06]} Bb6 {[%emt 0:00:00]} 34. Rb3 {[%emt 0:00:09]} Bc5 {[%emt 0:00:01]} 1/2-1/2

[Event "3rd Rio Open-Blitz 2024"]
[Site "Rio de Janeiro"]
[Date "2024.04.27"]
[Round "2.4"]
[White "Deus Filho, Joaquim de"]
[Black "De Siqueira, Luigy Lira"]
[Result "0-1"]
[ECO "C22"]
[WhiteElo "1884"]
[BlackElo "2274"]
[Annotator "NA RC"]
[PlyCount "127"]
[EventDate "2024.04.12"]
[EventType "swiss"]
[EventCountry "BRA"]
[SourceTitle "playchess.com"]
[Source "ChessBase"]
[SourceQuality "1"]
[TimeControl "180+2"]

1. e4 {[%emt 0:00:03]} e5 {[%emt 0:00:01]} 2. d4 {[%emt 0:00:01]} exd4 {[%emt 0:00:02]} 3. Qxd4 {[%emt 0:00:02]} Nc6 {[%emt 0:00:02]} 4. Qe3 {[%emt 0:00:01]} Nf6 {[%emt 0:00:07]} 5. Nc3 {[%emt 0:00:01]} Bb4 {[%emt 0:00:01]} 6. Bd2 {[%emt 0:00:01]} O-O {[%emt 0:00:04]} 7. O-O-O {[%emt 0:00:03]} Re8 {[%emt 0:00:14]} 8. Qg3 {[%emt 0:00:03]} d6 {[%emt 0:00:21]} 9. Bc4 {[%emt 0:00:13]} Ne5 {[%emt 0:00:07]} 10. Bb3 {[%emt 0:00:02]} Bxc3 {[%emt 0:00:06]} 11. Bxc3 {[%emt 0:00:10]} Nxe4 {[%emt 0:00:01]} 12. Qf4 {[%emt 0:00:32]} Nxc3 {[%emt 0:00:03]} 13. bxc3 {[%emt 0:00:02]} Be6 {[%emt 0:00:05]} 14. Nf3 {[%emt 0:00:04]} Nxf3 {[%emt 0:00:11]} 15. gxf3 {[%emt 0:00:11]} Bxb3 {[%emt 0:00:26]} 16. cxb3 {[%emt 0:00:02]} Qe7 {[%emt 0:00:02]} 17. Rhg1 {[%emt 0:00:13]} Qe5 {[%emt 0:00:05]} 18. Qd2 {[%emt 0:00:18]} a5 {[%emt 0:00:15]} 19. Rg4 {[%emt 0:00:03]} a4 {[%emt 0:00:08]} 20. b4 {[%emt 0:00:07]} g6 {[%emt 0:00:13]} 21. h4 {[%emt 0:00:01]} Ra6 {[%emt 0:00:12]} 22. Re4 {[%emt 0:00:06]} Qb5 {[%emt 0:00:04]} 23. Rxe8+ {[%emt 0:00:15]} Qxe8 {[%emt 0:00:02]} 24. h5 {[%emt 0:00:02]} Ra8 {[%emt 0:00:36]} 25. hxg6 {[%emt 0:00:11]} fxg6 {[%emt 0:00:02]} 26. Qd5+ {[%emt 0:00:02]} Qf7 {[%emt 0:00:02]} 27. Qxb7 {[%emt 0:00:03]} Re8 {[%emt 0:00:01]} 28. Rd2 {[%emt 0:00:21]} a3 {[%emt 0:00:04]} 29. Qa7 {[%emt 0:00:07]} Re1+ {[%emt 0:00:02]} 30. Kc2 {[%emt 0:00:03]} Qxa2+ {[%emt 0:00:02]} 31. Kd3 {[%emt 0:00:01]} Qd5+ {[%emt 0:00:10]} 32. Qd4 {[%emt 0:00:08]} Qxd4+ {[%emt 0:00:03]} 33. Kxd4 {[%emt 0:00:01]} Kf7 {[%emt 0:00:04]} 34. Ra2 {[%emt 0:00:06]} Rf1 {[%emt 0:00:02]} 35. Ke3 {[%emt 0:00:02]} Ke6 {[%emt 0:00:02]} 36. Rxa3 {[%emt 0:00:01]} c6 {[%emt 0:00:02]} 37. Ra7 {[%emt 0:00:01]} h5 {[%emt 0:00:01]} 38. Rg7 {[%emt 0:00:02]} Rg1 {[%emt 0:00:01]} 39. c4 {[%emt 0:00:04]} h4 {[%emt 0:00:03]} 40. b5 {[%emt 0:00:05]} cxb5 {[%emt 0:00:01]} 41. cxb5 {[%emt 0:00:01]} h3 {[%emt 0:00:02]} 42. Rh7 {[%emt 0:00:03]} Re1+ {[%emt 0:00:08]} 43. Kd2 {[%emt 0:00:06]} Rb1 {[%emt 0:00:01]} 44. Rxh3 {[%emt 0:00:03]} Rxb5 {[%emt 0:00:01]} 45. Ke3 {[%emt 0:00:00]} Kf5 {[%emt 0:00:01]} 46. Rh8 {[%emt 0:00:03]} Rb3+ {[%emt 0:00:01]} 47. Ke2 {[%emt 0:00:01]} d5 {[%emt 0:00:03]} 48. Rf8+ {[%emt 0:00:02]} Ke5 {[%emt 0:00:00]} 49. Re8+ {[%emt 0:00:01]} Kd4 {[%emt 0:00:01]} 50. Re6 {[%emt 0:00:05]} g5 {[%emt 0:00:01]} 51. Rg6 {[%emt 0:00:03]} Rb2+ {[%emt 0:00:01]} 52. Kf1 {[%emt 0:00:01]} Kc3 {[%emt 0:00:02]} 53. Rxg5 {[%emt 0:00:02]} d4 {[%emt 0:00:01]} 54. Rc5+ {[%emt 0:00:02]} Kd2 {[%emt 0:00:01]} 55. f4 {[%emt 0:00:02]} d3 {[%emt 0:00:01]} 56. f5 {[%emt 0:00:01]} Rb4 {[%emt 0:00:01]} 57. Ra5 {[%emt 0:00:07]} Rf4 {[%emt 0:00:05]} 58. Ra2+ {[%emt 0:00:03]} Kc3 {[%emt 0:00:00]} 59. Ra3+ {[%emt 0:00:00]} Kc2 {[%emt 0:00:01]} 60. Ra2+ {[%emt 0:00:01]} Kb3 {[%emt 0:00:20]} 61. Ra5 {[%emt 0:00:04]} d2 {[%emt 0:00:00]} 62. Ke2 {[%emt 0:00:02]} Rxf2+ {[%emt 0:00:00]} 63. Kxf2 {[%emt 0:00:21]} Kc2 {[%emt 0:00:06]} 64. Rd5 0-1

[Event "3rd Rio Open-Blitz 2024"]
[Site "Rio de Janeiro"]
[Date "2024.04.27"]
[Round "2.5"]
[White "Oliveira, Fernando Ventura"]
[Black "Teixeira, Maria Luiza Prado"]
[Result "1-0"]
[ECO "D03"]
[WhiteElo "2044"]
[BlackElo "1928"]
[Annotator "NA RC"]
[PlyCount "99"]
[EventDate "2024.04.12"]
[EventType "swiss"]
[EventCountry "BRA"]
[SourceTitle "playchess.com"]
[Source "ChessBase"]
[SourceQuality "1"]
[TimeControl "180+2"]

1. d4 {[%emt 0:00:02]} d5 {[%emt 0:00:01]} 2. Nf3 {[%emt 0:00:02]} Nf6 {[%emt 0:00:01]} 3. c3 {[%emt 0:00:01]} c5 {[%emt 0:00:04]} 4. Bg5 {[%emt 0:00:02]} e6 {[%emt 0:00:04]} 5. e3 {[%emt 0:00:02]} Nc6 {[%emt 0:00:04]} 6. Nbd2 {[%emt 0:00:03]} h6 {[%emt 0:00:05]} 7. Bh4 {[%emt 0:00:01]} b6 {[%emt 0:00:12]} 8. Bb5 {[%emt 0:00:05]} Bd7 {[%emt 0:00:07]} 9. O-O {[%emt 0:00:07]} Be7 {[%emt 0:00:07]} 10. Qa4 {[%emt 0:00:06]} Qc8 {[%emt 0:00:16]} 11. Ne5 {[%emt 0:00:13]} Nxe5 {[%emt 0:00:21]} 12. dxe5 {[%emt 0:00:03]} Bxb5 {[%emt 0:00:07]} 13. Qxb5+ {[%emt 0:00:02]} Qd7 {[%emt 0:00:02]} 14. Qd3 {[%emt 0:00:18]} Nh7 {[%emt 0:00:07]} 15. Bxe7 {[%emt 0:00:03]} Qxe7 {[%emt 0:00:04]} 16. e4 {[%emt 0:00:05]} Rd8 {[%emt 0:00:07]} 17. exd5 {[%emt 0:00:03]} Rxd5 {[%emt 0:00:06]} 18. Qe3 {[%emt 0:00:05]} O-O {[%emt 0:00:09]} 19. f4 {[%emt 0:00:20]} Rfd8 {[%emt 0:00:04]} 20. Ne4 {[%emt 0:00:03]} Rd3 {[%emt 0:00:16]} 21. Qe2 {[%emt 0:00:04]} Nf8 {[%emt 0:00:13]} 22. Nd6 {[%emt 0:00:02]} Rd5 {[%emt 0:00:02]} 23. Rad1 {[%emt 0:00:03]} Rxd1 {[%emt 0:00:05]} 24. Rxd1 {[%emt 0:00:02]} Ng6 {[%emt 0:00:01]} 25. g3 {[%emt 0:00:05]} f6 {[%emt 0:00:12]} 26. Qe4 {[%emt 0:00:04]} fxe5 {[%emt 0:00:08]} 27. fxe5 {[%emt 0:01:50]} Nf8 {[%emt 0:00:07]} 28. Rf1 {[%emt 0:00:00]} Nd7 {[%emt 0:00:04]} 29. h4 {[%emt 0:00:00]} Nxe5 {[%emt 0:00:02]} 30. Qxe5 {[%emt 0:00:00]} Qxd6 {[%emt 0:00:04]} 31. Qe3 {[%emt 0:00:00]} Rd7 {[%emt 0:00:13]} 32. Rf2 {[%emt 0:00:00]} Qd1+ {[%emt 0:00:03]} 33. Kg2 {[%emt 0:00:00]} Qg4 {[%emt 0:00:02]} 34. Rf4 {[%emt 0:00:00]} Qg6 {[%emt 0:00:01]} 35. h5 {[%emt 0:00:00]} Qe8 {[%emt 0:00:10]} 36. Re4 {[%emt 0:00:00]} Re7 {[%emt 0:00:03]} 37. g4 {[%emt 0:00:00]} Qf7 {[%emt 0:00:04]} 38. Rf4 {[%emt 0:00:00]} Qe8 {[%emt 0:00:00]} 39. Kg3 {[%emt 0:00:00]} e5 {[%emt 0:00:02]} 40. Rf5 {[%emt 0:00:00]} Qb8 {[%emt 0:00:02]} 41. Kh3 {[%emt 0:00:00]} Qd6 {[%emt 0:00:03]} 42. Qf3 {[%emt 0:00:00]} Re8 {[%emt 0:00:04]} 43. Qe4 {[%emt 0:00:00]} b5 {[%emt 0:00:08]} 44. a4 {[%emt 0:00:00]} a6 {[%emt 0:00:02]} 45. axb5 {[%emt 0:00:00]} axb5 {[%emt 0:00:00]} 46. Qb7 {[%emt 0:00:00]} Re7 {[%emt 0:00:01]} 47. Qa8+ {[%emt 0:00:00]} Kh7 {[%emt 0:00:01]} 48. Rf8 {[%emt 0:00:03]} g6 {[%emt 0:00:04]} 49. Rh8+ {[%emt 0:00:41]} Kg7 50. Qf8# {[%emt 0:00:00]} 1-0

[Event "3rd Rio Open-Blitz 2024"]
[Site "Rio de Janeiro"]
[Date "2024.04.27"]
[Round "2.6"]
[White "Guzman, Alessandro Lucien do"]
[Black "Librelato, Kathie Goulart"]
[Result "0-1"]
[ECO "E61"]
[WhiteElo "1797"]
[BlackElo "2165"]
[Annotator "NA RC"]
[PlyCount "84"]
[EventDate "2024.04.12"]
[EventType "swiss"]
[EventCountry "BRA"]
[SourceTitle "playchess.com"]
[Source "ChessBase"]
[SourceQuality "1"]
[TimeControl "180+2"]

1. d4 {[%emt 0:00:01]} Nf6 {[%emt 0:00:01]} 2. Nf3 {[%emt 0:00:01]} g6 {[%emt 0:00:01]} 3. e3 {[%emt 0:00:02]} Bg7 {[%emt 0:00:01]} 4. c4 {[%emt 0:00:01]} O-O {[%emt 0:00:03]} 5. Nc3 {[%emt 0:00:01]} c5 {[%emt 0:00:04]} 6. Be2 {[%emt 0:00:08]} d6 {[%emt 0:00:08]} 7. O-O {[%emt 0:00:03]} Nc6 {[%emt 0:00:01]} 8. d5 {[%emt 0:00:02]} Nb8 {[%emt 0:00:16]} 9. Qc2 {[%emt 0:00:06]} e6 {[%emt 0:00:10]} 10. e4 {[%emt 0:00:01]} exd5 {[%emt 0:00:01]} 11. exd5 {[%emt 0:00:07]} Re8 {[%emt 0:00:03]} 12. Re1 {[%emt 0:00:04]} Na6 {[%emt 0:00:07]} 13. a3 {[%emt 0:00:02]} Nc7 {[%emt 0:00:02]} 14. Bg5 {[%emt 0:00:02]} h6 {[%emt 0:00:03]} 15. Bh4 {[%emt 0:00:01]} a6 {[%emt 0:00:07]} 16. Bd3 {[%emt 0:00:01]} Bd7 {[%emt 0:00:08]} 17. Rab1 {[%emt 0:00:09]} b5 {[%emt 0:00:02]} 18. b3 {[%emt 0:00:03]} Rb8 {[%emt 0:00:35]} 19. Bg3 {[%emt 0:00:01]} Bg4 {[%emt 0:00:01]} 20. Nd2 {[%emt 0:00:18]} Nh5 {[%emt 0:00:02]} 21. f3 {[%emt 0:00:06]} Bc8 {[%emt 0:00:11]} 22. Bxg6 {[%emt 0:00:08]} fxg6 {[%emt 0:00:15]} 23. Qxg6 {[%emt 0:00:02]} Nxg3 {[%emt 0:00:03]} 24. hxg3 {[%emt 0:02:20]} Rxe1+ {[%emt 0:00:07]} 25. Rxe1 {[%emt 0:00:02]} Qg5 {[%emt 0:01:20]} 26. Qxd6 {[%emt 0:00:02]} Qxd2 {[%emt 0:00:00]} 27. Re7 {[%emt 0:00:02]} Qxc3 {[%emt 0:00:00]} 28. Qd8+ {[%emt 0:00:00]} Kh7 {[%emt 0:00:00]} 29. Qxc7 {[%emt 0:00:04]} Rb7 {[%emt 0:00:08]} 30. Qxc5 {[%emt 0:00:00]} Rxe7 {[%emt 0:00:00]} 31. Qxe7 {[%emt 0:00:04]} bxc4 {[%emt 0:00:00]} 32. d6 {[%emt 0:00:00]} Qd4+ {[%emt 0:00:00]} 33. Kh2 {[%emt 0:00:00]} cxb3 {[%emt 0:00:00]} 34. Qc7 {[%emt 0:00:00]} Be6 {[%emt 0:00:00]} 35. f4 {[%emt 0:00:00]} b2 {[%emt 0:00:01]} 36. Qc2+ {[%emt 0:00:00]} Kg8 {[%emt 0:00:05]} 37. d7 {[%emt 0:00:00]} Qxd7 {[%emt 0:00:01]} 38. g4 {[%emt 0:00:00]} Bxg4 {[%emt 0:00:02]} 39. Qb3+ {[%emt 0:00:00]} Be6 {[%emt 0:00:01]} 40. Qc2 {[%emt 0:00:00]} Bf5 {[%emt 0:00:01]} 41. Qb3+ {[%emt 0:00:00]} Kh7 {[%emt 0:00:01]} 42. g3 {[%emt 0:00:00]} b1=Q {[%emt 0:00:02]} 0-1